[Event "Baku Open 2024"]
[Site "Baku"]
[Date "2024.07.04"]
[Round "6.25"]
[White "Galaktionov, Artem"]
[Black "Kaldarova, Ayaulym"]
[Result "0-1"]
[ECO "E15"]
[WhiteElo "2358"]
[BlackElo "2100"]
[Annotator "RC"]
[PlyCount "88"]
[EventDate "2024.06.29"]
[EventType "swiss"]
[EventCountry "AZE"]
[SourceTitle "playchess.com"]
[Source "ChessBase"]
[SourceQuality "1"]
[TimeControl "5400+30"]

1. d4 {[%emt 0:00:02]} e6 {[%emt 0:00:14]} 2. c4 {[%emt 0:00:03]} Nf6 {[%emt 0:00:23]} 3. Nf3 {[%emt 0:00:06]} b6 {[%emt 0:00:14]} 4. g3 {[%emt 0:00:04]} Ba6 {[%emt 0:00:13]} 5. b3 {[%emt 0:00:05]} Bb4+ {[%emt 0:00:11]} 6. Bd2 {[%emt 0:00:03]} Be7 {[%emt 0:00:15]} 7. Bg2 {[%emt 0:00:03]} c6 {[%emt 0:00:29]} 8. O-O {[%emt 0:00:59]} d5 {[%emt 0:00:28]} 9. Qc2 {[%emt 0:08:04]} O-O {[%emt 0:01:39]} 10. a4 {[%emt 0:10:37]} Nbd7 {[%emt 0:09:02]} 11. a5 {[%emt 0:01:13]} Ne4 {[%emt 0:01:19]} 12. Bf4 {[%emt 0:01:07]} bxa5 {[%emt 0:11:47]} 13. c5 {[%emt 0:02:13]} Bb5 {[%emt 0:04:54]} 14. Re1 {[%emt 0:03:53]} f5 {[%emt 0:04:14]} 15. Nc3 {[%emt 0:15:13]} a6 {[%emt 0:01:05]} 16. Ne5 {[%emt 0:14:56]} Nxe5 {[%emt 0:04:52]} 17. Bxe5 {[%emt 0:00:31]} Bf6 {[%emt 0:01:16]} 18. Na4 {[%emt 0:01:26]} Qe7 {[%emt 0:10:40]} 19. Bxf6 {[%emt 0:02:35]} Qxf6 {[%emt 0:00:47]} 20. e3 {[%emt 0:00:37]} Qe7 {[%emt 0:07:27]} 21. f3 {[%emt 0:00:37]} Nf6 {[%emt 0:01:03]} 22. Nc3 {[%emt 0:05:49]} e5 {[%emt 0:11:42]} 23. dxe5 {[%emt 0:04:13]} Qxe5 {[%emt 0:00:25]} 24. Rxa5 {[%emt 0:00:13]} d4 {[%emt 0:05:30]} 25. Nxb5 {[%emt 0:06:17]} axb5 {[%emt 0:00:06]} 26. Rxa8 {[%emt 0:01:57]} Rxa8 {[%emt 0:00:05]} 27. b4 {[%emt 0:05:05]} Ra3 {[%emt 0:05:22]} 28. f4 {[%emt 0:00:34]} Qe6 {[%emt 0:00:07]} 29. e4 {[%emt 0:00:07]} d3 {[%emt 0:03:15]} 30. Qb2 {[%emt 0:00:56]} Ra2 {[%emt 0:02:06]} 31. Qd4 {[%emt 0:00:53]} d2 {[%emt 0:04:51]} 32. Rd1 {[%emt 0:02:55]} Nxe4 {[%emt 0:00:14]} 33. Bxe4 {[%emt 0:00:27]} Qxe4 {[%emt 0:00:37]} 34. Qd8+ {[%emt 0:02:51]} Kf7 {[%emt 0:00:05]} 35. Kf2 {[%emt 0:00:02]} Qe1+ {[%emt 0:01:19]} 36. Kg2 {[%emt 0:00:16]} Qe2+ {[%emt 0:00:20]} 37. Kh3 {[%emt 0:00:02]} Qg4+ {[%emt 0:05:08]} 38. Kg2 {[%emt 0:00:21]} Qe2+ {[%emt 0:00:05]} 39. Kh3 {[%emt 0:00:02]} h6 {[%emt 0:01:06]} 40. Qd7+ {[%emt 0:00:47]} Kg6 {[%emt 0:00:15]} 41. Qxc6+ {[%emt 0:00:16]} Kh5 {[%emt 0:02:14]} 42. Qd5 {[%emt 0:03:22]} g6 {[%emt 0:00:14]} 43. Qh1 {[%emt 0:00:11]} g5 {[%emt 0:00:43]} 44. fxg5 {[%emt 0:00:10]} hxg5 {[%emt 0:00:06]} 0-1

[Event "Baku Open 2024"]
[Site "Baku"]
[Date "2024.07.04"]
[Round "6.26"]
[White "Ahmad, Khagan"]
[Black "Sherali Pattnaik"]
[Result "1-0"]
[ECO "D25"]
[WhiteElo "2401"]
[BlackElo "1955"]
[Annotator "TA"]
[PlyCount "99"]
[EventDate "2024.06.29"]
[EventType "swiss"]
[EventCountry "AZE"]
[SourceTitle "playchess.com"]
[Source "ChessBase"]
[SourceQuality "1"]
[TimeControl "5400+30"]

{[%evp 11,98,27,35,28,32,15,17,-4,-2,-75,-37,-112,-103,-86,-67,-65,-81,-114,-111,-114,-111,-124,-123,-130,-81,-124,-118,-113,-24,-20,0,-45,0,-36,-32,-26,-33,-35,15,-62,25,43,175,168,170,133,335,314,299,320,308,245,348,295,271,285,261,274,324,332,391,411,416,391,343,237,1003,983,1532,1270,1634,1337,29973,29974,3002,366,29973,29974,29974,29975,5106,4134,29992,29993,29993,29993,29996,29997,29999]} 1. d4 {[%emt 0:00:37]} d5 {[%emt 0:01:01]} 2. c4 {[%emt 0:00:05]} dxc4 {[%emt 0:00:05]} 3. Nf3 {[%emt 0:00:06]} Nf6 {[%emt 0:00:03]} 4. e3 {[%emt 0:00:05]} Bg4 {[%emt 0:00:02]} 5. Bxc4 {[%emt 0:00:34]} e6 {[%emt 0:00:08]} 6. h3 {[%emt 0:00:06]} Bh5 {[%emt 0:00:03]} 7. O-O {[%emt 0:00:36]} Be7 {[%emt 0:00:11]} 8. Be2 {[%emt 0:00:38]} c5 {[%emt 0:03:11]} 9. Qb3 {[%emt 0:01:06] The position is equal.} Qc7 {[%emt 0:00:28]} 10. Bb5+ {[%emt 0:10:53]} (10. Qc4 $11 {remains equal.}) 10... Nbd7 {[%emt 0:01:47]} 11. g4 {[%emt 0:06:22]} (11. Be2 $15) 11... Bg6 $17 {[%emt 0:00:15]} 12. g5 {[%emt 0:05:52]} Nd5 {[%emt 0:01:45]} 13. Bxd7+ {[%emt 0:00:23]} Qxd7 {[%emt 0:01:18]} 14. Ne5 {[%emt 0:00:03]} Qc7 {[%emt 0:01:42]} 15. Qa4+ {[%emt 0:11:56]} Kf8 {[%emt 0:00:34]} 16. Nc3 {[%emt 0:00:10]} Nxc3 {[%emt 0:04:27]} (16... Bxg5 17. Nxd5 exd5 18. e4 $15) 17. bxc3 {[%emt 0:00:10][%cal Oe3e4]} f6 {[%emt 0:00:27]} (17... Bd6 $142 18. Nd7+ Ke7 19. dxc5 Bh2+ 20. Kg2 b5 (20... Qxd7 21. Qxd7+ Kxd7 22. Kxh2 $15)) 18. Nxg6+ {[%emt 0:10:54]} hxg6 {[%emt 0:00:03]} 19. Kg2 {[%emt 0:00:08]} Qd6 {[%emt 0:06:53]} ({Better is} 19... Kf7 $17 {[%cal Oh8h3] Hoping for ...Rxh3!} 20. Bd2 Rh5 (20... fxg5 21. Rh1 $17)) 20. e4 $1 $11 {[%emt 0:23:49]} f5 {[%emt 0:01:47]} 21. f3 {[%emt 0:01:03][%cal Bf2f3,Bf3f4,Bf4f5,Bf5e6][%mdl 32]} Qd8 {[%emt 0:03:27]} 22. Qc4 {[%emt 0:01:54]} Bxg5 {[%emt 0:19:46]} 23. f4 $1 {[%emt 0:13:20]} Be7 {[%emt 0:00:17] White must now prevent ...cxd4.} 24. Qxe6 {[%emt 0:00:17]} fxe4 {[%emt 0:00:07]} (24... cxd4 $15 25. exf5 Qc8 26. cxd4 Qc2+ (26... gxf5 27. Qe2 $14) 27. Rf2 Qxf5 28. Qxf5+ gxf5) 25. d5 {[%emt 0:03:26]} (25. Qxg6 Qd7 26. Qg4 Qd5 $17) (25. f5 $11 g5 26. Be3 (26. Qxe4 cxd4 27. cxd4 Rh4 $11)) 25... Qc8 {[%emt 0:10:51]} (25... Bf6 $15 26. Rb1 Qe7) 26. f5 {[%emt 0:02:55] Strongly threatening f6.} (26. Qxg6 Qxh3+ 27. Kf2 Qf3+ (27... Qxc3 $2 28. Kg1 $19) 28. Ke1 Bh4+ (28... Qxc3+ $2 29. Bd2 $19) (28... Qxc3+ $2 29. Bd2 $19)) 26... Bf6 {[%emt 0:07:20]} ({Black should try} 26... g5 $1 $14) 27. Bf4 $18 {[%emt 0:02:36]} (27. Qxe4 Rh5 $15 (27... Bxc3 28. fxg6+ Bf6 29. Qf3 $16)) (27. fxg6 Qxe6 28. dxe6 Ke7 $15) 27... Qxe6 {[%emt 0:00:59]} 28. fxe6 {[%emt 0:00:03] Rab1 is the strong threat.} Ke7 $2 {[%emt 0:00:17] A mistake that costs the game.} (28... Rh5 $16 {keeps fighting.}) 29. Rab1 {[%emt 0:00:13]} b6 {[%emt 0:00:17]} 30. c4 {[%emt 0:00:32]} Rh5 {[%emt 0:02:02]} 31. Rfe1 {[%emt 0:01:11]} Rah8 {[%emt 0:01:55]} (31... Be5 {was necessary.} 32. Rxe4 Bxf4) 32. Rb3 {[%emt 0:02:11]} Be5 {[%emt 0:03:12]} 33. Rxe4 {[%emt 0:00:13]} Bxf4 {[%emt 0:00:02]} 34. Rxf4 {[%emt 0:00:02][%mdl 4096] Endgame. KRR-KRR} Rf5 {[%emt 0:00:01]} 35. Rbf3 {[%emt 0:00:48]} Kf6 {[%emt 0:01:02]} 36. Re4 {[%emt 0:01:18] [#] And now d6 would win.} Ke7 {[%emt 0:01:11]} 37. Ra3 {[%emt 0:00:52]} Ra8 {[%emt 0:01:00]} 38. Rg3 {[%emt 0:00:16]} Raf8 $2 {[%emt 0:01:05]} (38... Rf6 39. Ra3 Rff8) 39. Rxg6 {[%emt 0:00:24]} Rf2+ {[%emt 0:00:05]} 40. Kg3 {[%emt 0:00:05]} R8f3+ {[%emt 0:00:10]} 41. Kg4 {[%emt 0:00:28] White threatens d6+ and mate.} Rf8 {[%emt 0:01:33]} 42. d6+ {[%emt 0:00:23]} Ke8 {[%emt 0:01:06]} 43. Kg3 $2 {[%emt 0:00:51]} (43. Rxg7 $2 {leads to mate.} Rg2+ (43... Rxa2 44. d7+ Kd8 45. e7+ Kc7 46. d8=Q+ Rxd8 47. e8=Q+ Kc8 48. Qc6+ Kb8 49. Qb7#) 44. Kh5 Rh8+) (43. d7+ Ke7 44. Rxg7+ Kd6 45. Kh4 Rh8+ 46. Kg3) 43... R8f3+ $2 {[%emt 0:00:11] [#]} (43... R2f3+ $18 44. Kg4 Rd3 45. d7+ (45. Rxg7 Rxd6 46. Rxa7 Rf6 $18) 45... Rxd7 46. exd7+ Kxd7 47. Rxg7+ Kc8 48. h4 (48. Rxa7 Kb8 $18) 48... b5 49. cxb5 Kb8) 44. Kh4 $1 {[%emt 0:00:15]} Rf4+ {[%emt 0:00:38]} 45. Rxf4 {[%emt 0:00:18]} Rxf4+ {[%emt 0:00:05]} 46. Kg5 {[%emt 0:00:03]} Rxc4 {[%emt 0:00:21]} 47. Rxg7 {[%emt 0:00:06][%cal Rg7g8] White mates.} Kf8 {[%emt 0:00:01]} 48. Rf7+ {[%emt 0:00:13]} Ke8 {[%emt 0:00:12]} 49. Rxa7 {[%emt 0:00:06][%cal Ra7a8]} Rd4 {[%emt 0:00:05]} 50. Ra8# {[%emt 0:00:05] Weighted Error Value: White=0.34/Black=0.59.  Loses game:     	---       	Black=1      Mistake:       	White=3     	Black=7      Inaccurate:     	White=5     	Black=3      OK:         	White=7     	Black=12     Best:        	White=4     	Black=3      Strong:       	White=2     	---} 1-0

[Event "Baku Open 2024"]
[Site "Baku"]
[Date "2024.07.04"]
[Round "6.27"]
[White "Bayramov, Zaur"]
[Black "Tsaruk, Maksim"]
[Result "1/2-1/2"]
[ECO "A21"]
[WhiteElo "2249"]
[BlackElo "2480"]
[Annotator "TA"]
[PlyCount "100"]
[EventDate "2024.06.29"]
[EventType "swiss"]
[EventCountry "AZE"]
[SourceTitle "playchess.com"]
[Source "ChessBase"]
[SourceQuality "1"]
[TimeControl "5400+30"]

{[%evp 13,100,0,0,0,10,0,22,18,38,9,14,0,0,-10,4,17,45,18,22,10,0,0,24,0,1,0,0,0,0,0,0,0,15,-7,-13,-11,0,0,-17,-41,0,0,13,18,20,-31,0,-6,0,0,0,0,-16,-5,-8,-8,-8,-8,8,8,8,8,8,8,8,8,8,8,8,8,8,8,8,8,8,8,8,0,0,0,0,0,0,0,0,0,0,0,0]} 1. c4 {[%emt 0:05:39]} e5 {[%emt 0:00:23]} 2. Nc3 {[%emt 0:00:09]} f5 {[%emt 0:00:22]} 3. d3 {[%emt 0:00:21]} Nf6 {[%emt 0:01:31]} 4. g3 {[%emt 1:26:21]} Be7 {[%emt 0:04:19]} 5. Bg2 {[%emt 0:00:30]} O-O 6. Nf3 {[%emt 0:00:00]} d6 {[%emt 0:01:17]} 7. O-O {[%emt 0:00:00]} a5 {[%emt 0:00:14]} 8. a3 {[%emt 0:00:00]} c6 {[%emt 0:02:29] [#]} 9. c5 $1 {[%emt 0:00:00]} h6 {[%emt 0:00:44]} (9... Na6 10. b4) 10. cxd6 {[%emt 0:00:00]} Bxd6 {[%emt 0:00:07]} 11. e4 {[%emt 0:00:00]} fxe4 {[%emt 0:11:15]} 12. dxe4 {[%emt 0:00:00]} Be6 {[%emt 0:02:00]} 13. Nh4 {[%emt 0:00:00]} Bc4 {[%emt 0:07:08][%cal Od6c5]} 14. Re1 {[%emt 0:00:00]} Bc5 {[%emt 0:09:08][%cal Oc5f2] aiming for ...Bxf2+!} 15. Be3 {[%emt 0:00:00]} Qxd1 {[%emt 0:01:21]} 16. Raxd1 {[%emt 0:00:00]} Bxe3 {[%emt 0:00:27]} 17. Rxe3 {[%emt 0:00:00]} Na6 {[%emt 0:00:17]} 18. Ng6 {[%emt 0:00:00]} (18. Rc1 $5) 18... Rfe8 {[%emt 0:13:29]} 19. f4 {[%emt 0:00:00]} Ng4 {[%emt 0:02:04]} 20. Ree1 {[%emt 0:00:00]} Bf7 {[%emt 0:01:33]} 21. Nh4 {[%emt 0:00:00]} Nc5 {[%emt 0:03:28]} 22. Nf3 {[%emt 0:00:00]} Bb3 {[%emt 0:02:56]} 23. Rd6 {[%emt 0:00:00]} exf4 {[%emt 0:03:52]} 24. gxf4 {[%emt 0:00:00]} Rad8 {[%emt 0:03:21]} 25. Rxd8 {[%emt 0:00:00]} Rxd8 {[%emt 0:00:05]} 26. Re2 {[%emt 0:00:00]} Nf6 {[%emt 0:11:51]} 27. Rd2 {[%emt 0:00:00]} Rd3 {[%emt 0:02:10]} 28. e5 $1 {[%emt 0:02:45]} Nfd7 {[%emt 0:00:05][%cal Og7g5] [#]} 29. Ne4 {[%emt 0:02:05]} Bd5 {[%emt 0:00:14]} 30. Nf2 {[%emt 0:01:57] The position is equal.} Re3 {[%emt 0:01:55]} (30... Rxf3 $6 31. Bxf3 Bxf3 32. b4 $16 (32. e6 Nf6 $11)) 31. Nd1 $1 {[%emt 0:01:08]} Rd3 {[%emt 0:01:53]} (31... Rxf3 $2 {loses.} 32. Bxf3 (32. e6 $2 Ne5 $17) 32... Bxf3 33. b4 axb4 34. axb4 $16) 32. Nf2 $1 {[%emt 0:00:10]} Rxd2 {[%emt 0:08:19]} ({Don't play} 32... Rxf3 $6 33. Bxf3 Bxf3 34. b4 $16 (34. e6 Nf6 $11)) 33. Nxd2 {[%emt 0:00:09]} g5 {[%emt 0:01:07]} 34. Bxd5+ {[%emt 0:01:04]} cxd5 {[%emt 0:00:04]} 35. fxg5 {[%emt 0:00:37]} Nxe5 {[%emt 0:00:05]} 36. gxh6 $11 {[%emt 0:01:09][%mdl 4096] Endgame. KNN-KNN} Kh7 {[%emt 0:00:03]} 37. Kg2 {[%emt 0:01:12]} a4 {[%emt 0:00:29]} 38. Kg3 {[%emt 0:00:58]} Kxh6 {[%emt 0:00:30]} 39. Kf4 {[%emt 0:01:18]} Ned3+ {[%emt 0:02:05]} 40. Nxd3 {[%emt 0:00:07]} Nxd3+ {[%emt 0:00:03] KN-KN} 41. Ke3 {[%emt 0:00:05]} Nxb2 {[%emt 0:00:05]} 42. Kd4 {[%emt 0:00:06] Prevents Nc4.} Nd1 {[%emt 0:00:55]} 43. Kxd5 {[%emt 0:00:21] Threatens to win with Kc5.} Ne3+ {[%emt 0:00:07]} 44. Kc5 {[%emt 0:00:12] Black must now prevent Kb5.} Nc2 $1 {[%emt 0:00:04]} 45. Kb5 {[%emt 0:00:20]} Nxa3+ {[%emt 0:00:07]} 46. Kxa4 {[%emt 0:00:03]} Nc2 {[%emt 0:00:05]} 47. Kb5 {[%emt 0:00:04]} Kh5 {[%emt 0:00:05]} 48. Kb6 {[%emt 0:00:03]} Kh4 {[%emt 0:00:05]} 49. h3 {[%emt 0:00:02]} Nd4 {[%emt 0:00:05]} 50. Kxb7 {[%emt 0:00:07]} Kxh3 {[%emt 0:00:04] An interesting draw.   Weighted Error Value: White=0.07 (flawless) /Black=0.06 (flawless) .  Mistake:       	White=1     	---        Inaccurate:     	White=2     	Black=3      OK:         	White=15    	Black=21     Best:        	---       	Black=2      Strong:       	White=3     	Black=1} 1/2-1/2

[Event "Baku Open 2024"]
[Site "Baku"]
[Date "2024.07.04"]
[Round "6.28"]
[White "Fataliyeva, Ulviyya"]
[Black "Davidov, Samir"]
[Result "1/2-1/2"]
[ECO "B00"]
[WhiteElo "2399"]
[BlackElo "2244"]
[Annotator "RC"]
[PlyCount "94"]
[EventDate "2024.06.29"]
[EventType "swiss"]
[EventCountry "AZE"]
[SourceTitle "playchess.com"]
[Source "ChessBase"]
[SourceQuality "1"]
[TimeControl "5400+30"]

1. e4 {[%emt 0:05:13]} b6 {[%emt 0:01:17]} 2. d4 {[%emt 0:00:15]} Bb7 {[%emt 0:00:35]} 3. Nc3 {[%emt 0:00:41]} e6 {[%emt 0:00:21]} 4. Bd3 {[%emt 0:01:01]} d6 {[%emt 0:01:31]} 5. Nf3 {[%emt 0:01:30]} Nd7 {[%emt 0:02:56]} 6. a4 {[%emt 0:03:59]} a6 {[%emt 0:01:44]} 7. O-O {[%emt 0:01:10]} g6 {[%emt 0:01:23]} 8. Bg5 {[%emt 0:00:39]} Ne7 {[%emt 0:01:11]} 9. e5 {[%emt 0:01:57]} h6 {[%emt 0:07:35]} 10. Bd2 {[%emt 0:03:30]} Bg7 {[%emt 0:01:02]} 11. exd6 {[%emt 0:06:49]} cxd6 {[%emt 0:00:10]} 12. Be4 {[%emt 0:00:47]} d5 {[%emt 0:15:31]} 13. Bd3 {[%emt 0:00:05]} Nc6 {[%emt 0:00:08]} 14. Ne2 {[%emt 0:00:44]} O-O {[%emt 0:00:51]} 15. c3 {[%emt 0:00:34]} g5 {[%emt 0:03:07]} 16. b4 {[%emt 0:09:55]} f5 {[%emt 0:18:43]} 17. Ng3 {[%emt 0:00:39]} Nf6 {[%emt 0:00:20]} 18. b5 {[%emt 0:03:02]} axb5 {[%emt 0:00:42]} 19. axb5 {[%emt 0:00:30]} Rxa1 {[%emt 0:00:31]} 20. Qxa1 {[%emt 0:00:02]} Na5 {[%emt 0:00:14]} 21. Ne5 {[%emt 0:08:19]} f4 {[%emt 0:04:48]} 22. Ne2 {[%emt 0:00:26]} Ne4 {[%emt 0:00:28]} 23. Qa2 {[%emt 0:01:20]} Bxe5 {[%emt 0:27:30]} 24. dxe5 {[%emt 0:01:59]} Nc5 {[%emt 0:00:24]} 25. Bb1 {[%emt 0:00:44]} Nc4 {[%emt 0:00:04]} 26. Qc2 {[%emt 0:02:55]} Ne4 {[%emt 0:02:05]} 27. Bc1 {[%emt 0:00:27]} f3 {[%emt 0:00:10]} 28. Nd4 {[%emt 0:01:02]} Nxe5 {[%emt 0:00:37]} 29. Nxe6 {[%emt 0:06:01]} Qd7 {[%emt 0:00:06]} 30. Ba2 {[%emt 0:00:05]} Ra8 {[%emt 0:01:29]} 31. Re1 {[%emt 0:02:10]} Kh8 {[%emt 0:01:34]} 32. Bb3 {[%emt 0:04:04]} Re8 {[%emt 0:03:39]} 33. Qd1 {[%emt 0:00:35]} Rxe6 {[%emt 0:03:36]} 34. Rxe4 {[%emt 0:00:15]} fxg2 {[%emt 0:00:26]} 35. Qd4 {[%emt 0:01:14]} Qxb5 {[%emt 0:00:30]} 36. Kxg2 {[%emt 0:00:17]} dxe4 {[%emt 0:00:03]} 37. Bxe6 {[%emt 0:00:07]} e3+ {[%emt 0:00:06]} 38. Kg3 {[%emt 0:01:25]} e2 {[%emt 0:00:11]} 39. Bc4 {[%emt 0:08:07]} Qxc4 {[%emt 0:00:04]} 40. Qxe5+ {[%emt 0:00:04]} Kh7 {[%emt 0:00:03]} 41. Qe7+ {[%emt 0:00:37]} Kg6 {[%emt 0:00:12]} 42. Qe8+ {[%emt 0:01:20]} Kf6 {[%emt 0:00:15]} 43. Qf8+ {[%emt 0:03:38]} Ke5 {[%emt 0:00:35]} 44. Qe7+ {[%emt 0:04:45]} Kf5 {[%emt 0:00:26]} 45. Qh7+ {[%emt 0:01:26]} Ke5 {[%emt 0:00:15]} 46. Qe7+ {[%emt 0:00:15]} Kf5 {[%emt 0:00:25]} 47. Qh7+ {[%emt 0:00:01]} Ke5 {[%emt 0:00:05]} 1/2-1/2

[Event "Baku Open 2024"]
[Site "Baku"]
[Date "2024.07.04"]
[Round "6.29"]
[White "Orujov, Farid"]
[Black "Aliyev, Ravan"]
[Result "1/2-1/2"]
[ECO "B08"]
[WhiteElo "2243"]
[BlackElo "2352"]
[Annotator "TA"]
[PlyCount "121"]
[EventDate "2024.06.29"]
[EventType "swiss"]
[EventCountry "AZE"]
[SourceTitle "playchess.com"]
[Source "ChessBase"]
[SourceQuality "1"]
[TimeControl "5400+30"]

{[%evp 44,121,81,81,81,81,81,81,79,73,85,73,81,73,84,73,96,95,107,116,144,111,137,47,66,72,79,74,187,177,339,282,494,469,541,497,405,207,952,0,0,-144,0,0,0,0,0,0,0,-60,0,0,0,0,0,0,0,0,0,-8,0,0,0,0,0,0,0,0,0,0,0,0,0,0,0,0,0,0,0,0]} 1. e4 {[%emt 0:00:05]} g6 {[%emt 0:01:46]} 2. d4 {[%emt 0:00:22]} Bg7 {[%emt 0:00:08]} 3. Nc3 {[%emt 0:00:16]} d6 {[%emt 0:00:05]} 4. Nf3 {[%emt 0:00:07]} Nf6 {[%emt 0:00:16]} 5. Be2 {[%emt 0:00:44]} O-O {[%emt 0:00:11]} 6. O-O {[%emt 0:00:35]} c6 {[%emt 0:00:44]} 7. h3 {[%emt 0:01:33]} Nbd7 {[%emt 0:02:25]} 8. e5 {[%emt 0:09:04]} Nd5 {[%emt 0:13:44]} 9. Nxd5 {[%emt 0:01:30]} cxd5 {[%emt 0:00:02]} 10. exd6 {[%emt 0:04:18]} exd6 {[%emt 0:01:59]} 11. Bd3 {[%emt 0:02:19]} Nf6 {[%emt 0:01:12]} 12. Re1 {[%emt 0:00:36]} Bd7 {[%emt 0:01:57]} 13. c3 {[%emt 0:03:49]} Bc6 {[%emt 0:01:10]} 14. Bg5 {[%emt 0:04:57]} Qd7 {[%emt 0:05:34]} 15. Bxf6 {[%emt 0:02:40]} Bxf6 {[%emt 0:00:01]} 16. Nh2 {[%emt 0:05:51]} Bg7 {[%emt 0:07:30]} 17. f4 {[%emt 0:08:10]} Rae8 {[%emt 0:10:24]} 18. Qf3 {[%emt 0:02:20]} f5 {[%emt 0:08:47]} 19. Nf1 {[%emt 0:02:05]} b5 {[%emt 0:04:21]} 20. a3 {[%emt 0:10:29]} Kh8 {[%emt 0:02:23]} 21. Ne3 {[%emt 0:04:50]} a5 {[%emt 0:01:06]} 22. Nc2 {[%emt 0:01:07]} Re4 {[%emt 0:11:48]} 23. Bxe4 {[%emt 0:03:40]} dxe4 {[%emt 0:00:02]} 24. Qd1 {[%emt 0:00:01]} d5 {[%emt 0:06:38]} 25. h4 {[%emt 0:02:15]} Qd6 {[%emt 0:02:46]} 26. g3 {[%emt 0:00:56]} h6 {[%emt 0:00:12]} 27. Kg2 {[%emt 0:02:07]} Bf6 {[%emt 0:00:18]} 28. Rf1 {[%emt 0:02:15]} Kg7 {[%emt 0:01:17]} 29. Qd2 {[%emt 0:03:14]} Bd8 {[%emt 0:02:10]} 30. b3 {[%emt 0:02:45]} a4 {[%emt 0:09:44]} 31. bxa4 {[%emt 0:01:21]} bxa4 {[%emt 0:00:01]} 32. Rab1 {[%emt 0:02:47]} Ba5 {[%emt 0:01:14] [#]} 33. h5 {[%emt 0:05:28]} (33. Rfc1 $1 $16) 33... gxh5 $14 {[%emt 0:00:41]} 34. Rh1 {[%emt 0:00:28]} Be8 {[%emt 0:04:03]} 35. Rb7+ {[%emt 0:02:39]} Rf7 {[%emt 0:00:47]} (35... Kh8 $16) 36. Ne3 $1 $18 {[%emt 0:03:18]} Kf6 $2 {[%emt 0:00:05]} (36... Kh7 37. Nxf5 Qg6 38. Rxf7+ Bxf7) 37. Qb2 $18 {[%emt 0:01:44]} Qc6 $2 {[%emt 0:00:12]} (37... Kg6 {was worth a try.} 38. Rxf7 Bxf7) 38. Rxf7+ $18 {[%emt 0:00:28]} Bxf7 {[%emt 0:00:02]} 39. Qb8 {[%emt 0:00:54]} Kg6 {[%emt 0:01:43] [#]} 40. c4 {[%emt 0:02:45]} (40. Rb1 $142 $1 {[%mdl 512]}) 40... Bd2 $2 {[%emt 0:00:23] [#]} (40... dxc4 41. Rb1 (41. Qe5 Bd2 $18) 41... Qf6) 41. cxd5 $2 {[%emt 0:01:08]} (41. Rb1 $1 $18 {[%cal Rb1b6] White threatens Rb6 and mate.} Qe8 42. Qb6+ (42. Nxd5 Qxb8 43. Rxb8 Bxd5 $18) 42... Kh7 43. Nxd5 (43. Nxf5 Qe6 $18)) 41... Qa6 $1 $11 {[%emt 0:00:37]} 42. Nd1 {[%emt 0:02:38]} (42. Kf2 $2 Bxe3+ 43. Kxe3 Qd3+ (43... Bxd5 44. Qb1 $16) 44. Kf2 Qf3+ (44... Qxa3 45. Kg2 $11) 45. Ke1 Qxh1+ $19) (42. Rb1 $11 Qe2+ (42... Bxe3 $2 43. Rb6+ $18) 43. Kh1 Qxe3 (43... Bxe3 44. Qd6+ Kh7 45. Qf8 $11) 44. Qd6+ Kh7 45. Qe7 Qf3+ 46. Kh2 Qe2+ 47. Kh3 Qg4+ 48. Kh2) 42... Qe2+ {[%emt 0:00:27]} (42... Bxd5 43. Qe5 Qc4 44. Kh3 $15) (42... e3 $1 $17 43. Kh2 Qe2+ (43... Bxd5 44. Nxe3 Qe2+ 45. Kh3 $17) 44. Kh3 Qg4+ (44... Bxd5 45. Qd6+ Kh7 46. Qxd5 $16) 45. Kh2 h4 (45... Bxd5 46. Qd6+ Kh7 47. Qxd5 $16)) 43. Kh3 $11 {[%emt 0:00:35]} Qg4+ {[%emt 0:00:16]} 44. Kg2 {[%emt 0:00:00]} Qf3+ {[%emt 0:00:38]} 45. Kh2 {[%emt 0:00:47]} Qe2+ {[%emt 0:00:33]} (45... Bxd5 46. Qd6+ Kg7 47. Qe5+ (47. Qxd5 Qe2+ 48. Kg1 Qxd1+ 49. Kh2 Qe2+ 50. Kh3 Qg4+ 51. Kh2 Qe2+ 52. Kh3 Qg4+ 53. Kh2 h4 $11) 47... Kg6 48. Qxd5) (45... h4 $11 46. Rg1 Qh5) 46. Kh3 $15 {[%emt 0:00:04]} Qg4+ {[%emt 0:00:06]} ({Black should play} 46... h4 $1 $15 47. Rg1 Qg4+ (47... Bxd5 $2 48. gxh4+ $18) 48. Kh2 Kh5 (48... Bxd5 $2 49. gxh4 $18)) 47. Kg2 $1 $11 {[%emt 0:00:06]} Qf3+ {[%emt 0:00:57]} 48. Kh2 {[%emt 0:00:31]} e3 {[%emt 0:00:10]} (48... Bxd5 49. Qd6+ Kg7 50. Qe5+ (50. Qxd5 Qe2+ $11) 50... Kg6 51. Qxd5) (48... h4 $5 49. Rg1 $8 Qh5 $11) 49. Qd6+ {[%emt 0:00:37]} Kg7 {[%emt 0:00:53]} 50. Qe5+ {[%emt 0:00:39]} Kg8 {[%emt 0:00:21]} 51. Nxe3 {[%emt 0:01:23]} Bxe3 {[%emt 0:00:33]} 52. Rb1 $1 {[%emt 0:00:16]} Qf2+ {[%emt 0:00:36]} (52... Bxd5 53. Rb8+ Kf7 54. Qc7+ (54. Qxf5+ Kg7 $18) 54... Kg6 55. Rb6+) 53. Kh3 {[%emt 0:00:16]} Bxd4 {[%emt 0:00:31]} 54. Rb8+ {[%emt 0:00:22]} Kh7 {[%emt 0:00:01]} 55. Rh8+ $1 {[%emt 0:01:11]} Kg6 {[%emt 0:00:01]} 56. Qd6+ {[%emt 0:00:31]} Bf6 {[%emt 0:00:01]} 57. Rxh6+ $1 {[%emt 0:00:31]} Kxh6 {[%emt 0:02:28]} 58. Qxf6+ {[%emt 0:00:01]} Bg6 {[%emt 0:00:00]} 59. Qh8+ {[%emt 0:00:15]} Bh7 {[%emt 0:00:00]} 60. Qf6+ {[%emt 0:00:48]} Bg6 {[%emt 0:00:00]} 61. Qh8+ {[%emt 0:00:05]} 1/2-1/2